bitfinex-derivatives/quotes_BTCF0:USTF0_20250924
["timestamp","ask_amount","ask_price","bid_price","bid_amount"]
[1758683237418,0.28952706,112220.0,112210.0,0.92755487]
[1758683237714,0.006,112220.0,112210.0,1.36867306]
[1758683238014,0.82172,112220.0,112210.0,1.46668967]
[1758683238218,0.82132,112220.0,112210.0,1.35470101]
[1758683238419,0.82172,112220.0,112210.0,1.35470101]
[1758683239319,0.82172,112220.0,112210.0,1.51468612]
[1758683240618,0.82172,112220.0,112210.0,1.23155906]
[1758683240819,0.0064,112220.0,112210.0,1.51468612]
[1758683241022,0.0954748,112220.0,112210.0,1.35470101]
[1758683241223,0.7651148,112220.0,112210.0,0.8566844]
[1758683241426,0.37860186,112220.0,112210.0,0.8566844]
[1758683241719,1.19380186,112220.0,112210.0,0.8566844]
[1758683242422,1.18780186,112220.0,112210.0,0.8586844]
[1758683244227,1.18780186,112220.0,112210.0,0.57555734]
[1758683244411,1.18780186,112220.0,112210.0,0.4864427]
[1758683244615,1.18780186,112220.0,112210.0,0.03656]
[1758683244816,1.58780186,112220.0,112210.0,0.01504]
[1758683245028,1.94860186,112220.0,112210.0,0.002]
[1758683245828,1.94860186,112220.0,112210.0,0.01489]
[1758683246629,1.95360186,112220.0,112210.0,0.01389]
[1758683247134,1.95360186,112220.0,112210.0,0.12581447]
[1758683247625,1.95460186,112220.0,112210.0,0.12481447]
[1758683248732,1.95460186,112220.0,112210.0,0.14627447]
[1758683250226,1.95460186,112220.0,112210.0,0.03435]
[1758683252232,1.95440186,112220.0,112210.0,0.03435]
[1758683253136,1.95440186,112220.0,112210.0,0.01289]
[1758683253336,0.0890827,112210.0,112200.0,0.39598]
[1758683253543,0.37220976,112210.0,112200.0,0.39588]
[1758683253839,0.0890827,112210.0,112200.0,0.39588]
[1758683254036,0.37220976,112210.0,112200.0,0.39588]
[1758683255037,0.37220976,112210.0,112200.0,0.39688]
[1758683255233,0.37220976,112210.0,112200.0,0.39788]
[1758683255637,0.0890827,112210.0,112200.0,0.39788]
[1758683255939,1.265379,112220.0,112210.0,0.03435]
[1758683256139,1.265279,112220.0,112210.0,0.14624363]
[1758683256339,0.450279,112220.0,112210.0,0.14624363]
[1758683256540,1.265199,112220.0,112210.0,0.14624363]
[1758683257046,1.54832606,112220.0,112210.0,0.14624363]
[1758683257342,0.73840606,112220.0,112210.0,0.14624363]
[1758683257543,1.55332606,112220.0,112210.0,0.14624363]
[1758683257743,1.55432606,112220.0,112210.0,0.14624363]
[1758683258943,1.19352606,112220.0,112210.0,0.14624363]
[1758683259238,1.19352606,112220.0,112210.0,0.50704363]
[1758683259441,0.0954748,112220.0,112210.0,0.87925339]
[1758683259649,0.0954748,112220.0,112210.0,0.59612633]
[1758683259650,1.19312186,112220.0,112210.0,0.59612633]
[1758683259946,1.19352186,112220.0,112210.0,0.59612633]
[1758683261643,1.19344186,112220.0,112210.0,0.59612633]
[1758683262445,1.19344186,112220.0,112210.0,0.4842327]
[1758683262946,1.19344186,112220.0,112210.0,0.59610892]
[1758683263452,1.19344186,112220.0,112210.0,0.4842327]
[1758683263646,0.0064,112220.0,112210.0,0.76735976]
[1758683263850,1.10432706,112220.0,112210.0,0.76735976]
[1758683264046,1.10432706,112220.0,112210.0,0.4842327]
[1758683264253,1.10392706,112220.0,112210.0,0.4842327]
[1758683264452,1.10432706,112220.0,112210.0,0.4842327]
[1758683264652,0.8212,112220.0,112210.0,0.4842327]
[1758683265041,0.8212,112220.0,112210.0,0.59610502]
[1758683265351,0.8212,112220.0,112210.0,0.4842327]
[1758683265850,0.0064,112220.0,112210.0,1.13583185]
[1758683266152,0.79772,112220.0,112210.0,1.13583185]
[1758683266452,0.79732,112220.0,112210.0,0.8842327]
[1758683266953,0.79772,112220.0,112210.0,0.8842327]
[1758683267849,0.0014,112220.0,112210.0,0.8842327]
[1758683268046,0.81516,112220.0,112210.0,0.8872327]
[1758683269055,0.81516,112220.0,112210.0,0.8862327]
[1758683270750,0.81508,112220.0,112210.0,0.8862327]
[1758683275061,0.0004,112220.0,112210.0,0.8862327]
[1758683275261,0.815,112220.0,112210.0,0.8862327]
[1758683276058,0.0004,112220.0,112210.0,0.8862327]
[1758683276354,0.63296,112220.0,112210.0,1.32175628]
[1758683276659,0.63256,112220.0,112210.0,1.32175628]
[1758683277160,0.63296,112220.0,112210.0,1.32175628]
[1758683278159,0.0004,112220.0,112210.0,1.32175628]
[1758683278359,0.81492,112220.0,112210.0,1.32175628]
[1758683283565,0.0004,112220.0,112210.0,1.32175628]
[1758683283755,0.81484,112220.0,112210.0,1.32175628]
[1758683284162,0.81444,112220.0,112210.0,1.32175628]
[1758683284656,0.81484,112220.0,112210.0,1.32175628]
[1758683284963,0.81484,112220.0,112210.0,1.07015713]
[1758683285164,0.81484,112220.0,112210.0,1.32175628]
[1758683285364,0.81484,112220.0,112210.0,1.32075628]
[1758683285562,0.81484,112220.0,112210.0,1.32275628]
[1758683286263,0.81484,112220.0,112210.0,1.32075628]
[1758683287560,0.81484,112220.0,112210.0,0.66915713]
[1758683287761,0.9039148,112220.0,112210.0,0.57434734]
[1758683288565,0.81484,112220.0,112210.0,0.57434734]
[1758683292870,0.0004,112220.0,112210.0,0.57434734]
[1758683293069,0.81464,112220.0,112210.0,0.57434734]
[1758683293668,0.81464,112220.0,112210.0,0.78239795]
[1758683296273,0.81464,112220.0,112210.0,0.57434734]
[1758683303276,0.81464,112220.0,112210.0,0.78239795]
[1758683306680,0.9037148,112220.0,112210.0,0.78239795]
[1758683307988,1.55531395,112220.0,112210.0,0.40350664]
[1758683308180,1.55531395,112220.0,112210.0,0.19545603]
[1758683308884,1.55531395,112220.0,112210.0,0.03535]
[1758683309071,0.74107395,112220.0,112210.0,0.1244327]
[1758683309277,1.55507395,112220.0,112210.0,0.1244327]
[1758683311887,1.46599915,112220.0,112210.0,0.1244327]
[1758683312078,0.81432,112220.0,112210.0,0.73683185]
[1758683313182,0.81432,112220.0,112210.0,0.4852327]
[1758683313588,0.81436,112220.0,112210.0,0.4852327]
[1758683315478,0.81436,112220.0,112210.0,0.69328331]
[1758683315988,0.81436,112220.0,112210.0,0.85338988]
[1758683316685,0.81436,112220.0,112210.0,0.64533927]
[1758683317585,0.81428,112220.0,112210.0,0.64533927]
[1758683318484,0.0004,112220.0,112210.0,0.64533927]
[1758683318681,0.73716,112220.0,112210.0,0.64533927]
[1758683319187,0.0004,112220.0,112210.0,0.89693842]
[1758683319384,0.8018,112220.0,112210.0,0.73445391]
[1758683319584,0.8014,112220.0,112210.0,0.98605306]
[1758683319884,0.8018,112220.0,112210.0,0.82594649]
[1758683320487,0.8018,112220.0,112210.0,0.98605191]
[1758683320686,0.8142,112220.0,112210.0,0.98605191]
[1758683321984,0.0004,112220.0,112210.0,0.98605191]
[1758683322191,0.8142,112220.0,112210.0,0.82594649]
[1758683322889,0.8142,112220.0,112210.0,0.98604048]
[1758683324493,0.0004,112220.0,112210.0,0.98604048]
[1758683324691,0.56764,112220.0,112210.0,1.01742691]
[1758683324892,0.56804,112220.0,112210.0,1.01742691]
[1758683325596,0.56804,112220.0,112210.0,1.03759274]
[1758683327995,0.0004,112220.0,112210.0,1.03759274]
[1758683328496,0.0004,112220.0,112210.0,0.87749875]
[1758683328797,0.0004,112220.0,112210.0,1.03761986]
[1758683329398,0.0004,112220.0,112210.0,0.75463428]
[1758683329600,0.0004,112220.0,112210.0,1.51313915]
[1758683329896,0.0004,112220.0,112210.0,1.01745403]
[1758683330496,0.0004,112220.0,112210.0,0.85733292]
[1758683330896,0.28338558,112220.0,112210.0,0.85733292]
[1758683331194,0.28338558,112220.0,112210.0,1.01747082]
[1758683331795,0.28338558,112220.0,112210.0,0.85733292]
[1758683332096,0.28338558,112220.0,112210.0,1.01746972]
[1758683332294,0.0004,112220.0,112210.0,1.01746972]
[1758683333596,0.0004,112220.0,112210.0,0.73448414]
[1758683333794,0.0004,112220.0,112210.0,1.01746972]
[1758683335497,0.814,112220.0,112210.0,1.01746972]
[1758683337795,0.814,112220.0,112210.0,0.73448414]
[1758683338000,1.18606038,112220.0,112210.0,1.01746972]
[1758683338201,0.9030748,112220.0,112210.0,1.01746972]
[1758683338401,1.18606038,112220.0,112210.0,1.01746972]
[1758683339701,1.18606038,112220.0,112210.0,0.73448414]
[1758683339902,1.18606038,112220.0,112210.0,0.6453695]
[1758683340202,1.18606038,112220.0,112210.0,0.92835508]
[1758683340904,1.18606038,112220.0,112210.0,0.6453695]
[1758683341204,1.18606038,112220.0,112210.0,0.92835508]
[1758683342204,0.9030748,112220.0,112210.0,0.92835508]
[1758683342502,1.18606038,112220.0,112210.0,0.92835508]
[1758683342907,0.9030748,112220.0,112210.0,0.92835508]
[1758683343105,1.18606038,112220.0,112210.0,0.92835508]
[1758683344204,1.18606038,112220.0,112210.0,0.97626889]
[1758683348808,0.9030748,112220.0,112210.0,0.97626889]
[1758683348998,1.09698558,112220.0,112210.0,0.97626889]
[1758683349198,1.09698558,112220.0,112210.0,0.69328331]
[1758683349402,1.18606038,112220.0,112210.0,0.97626889]
[1758683349601,1.18606038,112220.0,112210.0,0.69328331]
[1758683349805,1.18606038,112220.0,112210.0,0.97626889]
[1758683352209,0.37246038,112220.0,112210.0,0.97626889]
[1758683352506,1.18590038,112220.0,112210.0,0.97626889]
[1758683352706,0.9029148,112220.0,112210.0,0.97626889]
[1758683353005,1.18590038,112220.0,112210.0,0.97626889]
[1758683353603,1.18590038,112220.0,112210.0,0.69328331]
[1758683353807,1.18590038,112220.0,112210.0,0.97626889]
[1758683355209,0.9029148,112220.0,112210.0,0.97626889]
[1758683355410,1.18590038,112220.0,112210.0,0.97626889]
[1758683356209,1.18590038,112220.0,112210.0,0.76821828]
[1758683361006,1.18590038,112220.0,112210.0,0.4852327]
[1758683361210,1.18590038,112220.0,112210.0,0.76821828]
[1758683364818,1.09682558,112220.0,112210.0,0.76821828]
[1758683367319,0.81384,112220.0,112210.0,0.76821828]
[1758683367517,1.09682558,112220.0,112210.0,0.76821828]
[1758683369921,0.81384,112220.0,112210.0,0.76821828]
[1758683370222,1.09682558,112220.0,112210.0,0.76821828]
[1758683372115,1.09682558,112220.0,112210.0,0.92849516]
[1758683373628,1.09682558,112220.0,112210.0,0.76821828]
[1758683374119,1.09682558,112220.0,112210.0,0.4852327]
[1758683374323,0.81384,112220.0,112210.0,0.76821828]
[1758683374522,0.81384,112220.0,112210.0,0.92849041]
[1758683374722,0.81364,112220.0,112210.0,0.92849041]
[1758683374922,0.81364,112220.0,112210.0,1.41760505]
[1758683374923,0.0004,112220.0,112210.0,1.41760505]
[1758683375128,0.48476,112220.0,112210.0,1.51773139]
[1758683375324,0.48476,112220.0,112210.0,1.35745926]
[1758683375629,0.81334,112230.0,112220.0,0.1257048]
[1758683375818,0.81324,112230.0,112220.0,0.76949038]
[1758683376224,0.81364,112230.0,112220.0,0.85860502]
[1758683376729,1.09662558,112230.0,112220.0,0.85860502]
[1758683377331,1.10162558,112230.0,112220.0,0.85860502]
[1758683377527,1.10262558,112230.0,112220.0,0.85860502]
[1758683377929,1.10262558,112230.0,112220.0,0.57561944]
[1758683378130,1.10262558,112230.0,112220.0,0.4865048]
[1758683378728,0.81964,112230.0,112220.0,0.4865048]
[1758683378931,1.10262558,112230.0,112220.0,0.4865048]
[1758683379932,0.81964,112230.0,112220.0,0.4865048]
[1758683380134,1.10262558,112230.0,112220.0,0.4865048]
[1758683381533,0.81964,112230.0,112220.0,0.4865048]
[1758683381734,1.10262558,112230.0,112220.0,0.4865048]
[1758683382134,1.10262558,112230.0,112220.0,0.76949038]
[1758683382335,1.87467806,112230.0,112210.0,0.59808202]
[1758683382529,1.19179248,112230.0,112220.0,0.20126092]
[1758683382731,1.19169248,112230.0,112220.0,0.20126092]
[1758683383034,1.19169248,112230.0,112220.0,0.21486092]
[1758683383634,1.19069248,112230.0,112220.0,0.21486092]
[1758683383824,1.47367806,112230.0,112220.0,0.23789092]
[1758683384025,0.9077069,112230.0,112220.0,0.23789092]
[1758683384236,1.19069248,112230.0,112220.0,0.23789092]
[1758683384537,1.15930236,112230.0,112220.0,0.23789092]
[1758683384833,1.07023546,112230.0,112220.0,0.23789092]
[1758683385034,1.07123546,112230.0,112220.0,0.23789092]
[1758683386335,1.16030236,112230.0,112220.0,0.23789092]
[1758683386531,1.92110236,112230.0,112220.0,0.11218612]
[1758683386737,1.92110236,112230.0,112220.0,0.12578612]
[1758683386944,0.0890748,112220.0,112210.0,0.01299]
[1758683387133,0.0890827,112210.0,112200.0,0.19702213]
[1758683387331,1.51907816,112210.0,112200.0,0.17389213]
[1758683387531,1.51907816,112210.0,112200.0,0.01362]
[1758683387740,1.2674827,112210.0,112200.0,0.03581]
[1758683387940,1.42999546,112210.0,112200.0,0.1249007]
[1758683388340,1.42899546,112210.0,112200.0,0.1249007]
[1758683389341,1.42899546,112210.0,112200.0,0.1309007]
[1758683389540,1.51807816,112210.0,112200.0,0.1309007]
[1758683389738,1.2664827,112210.0,112200.0,0.04181]
[1758683389939,1.51807816,112210.0,112200.0,0.04181]
[1758683391146,1.51807816,112210.0,112200.0,0.04381]
[1758683391443,1.51807816,112210.0,112200.0,0.03781]
[1758683392149,1.51807816,112210.0,112200.0,0.03581]
[1758683392541,1.2664827,112210.0,112200.0,0.03581]
[1758683392845,1.51807816,112210.0,112200.0,0.03581]
[1758683393840,1.51807816,112210.0,112200.0,0.14784703]
[1758683394038,1.2664827,112210.0,112200.0,0.14784703]
[1758683394248,1.51807816,112210.0,112200.0,0.14784703]
[1758683394442,1.51807816,112210.0,112200.0,0.11203703]
[1758683394650,1.6664827,112210.0,112200.0,0.11203703]
[1758683395146,1.91807816,112210.0,112200.0,0.11203703]
[1758683395945,1.93914339,112210.0,112200.0,0.11203703]
[1758683396141,2.19073885,112210.0,112200.0,0.09405303]
[1758683396343,0.0890907,112200.0,112190.0,0.0001]
[1758683396650,0.10990427,112190.0,112180.0,0.0001]
[1758683396847,0.0890066,112180.0,112170.0,0.16067213]
[1758683397048,0.68691441,112180.0,112170.0,0.0004]
[1758683397251,0.0891145,112170.0,112160.0,0.55589213]
[1758683397448,1.16150996,112170.0,112160.0,0.55589213]
[1758683397648,1.15550996,112170.0,112160.0,0.19509213]
[1758683398250,1.14350996,112170.0,112160.0,0.17290213]
[1758683398645,1.14350996,112170.0,112160.0,0.01263]
[1758683398849,1.14150996,112170.0,112150.0,0.64501823]
[1758683399244,1.14150996,112170.0,112160.0,0.03522]
[1758683399448,1.15992603,112170.0,112160.0,0.03522]
[1758683399755,1.15992603,112170.0,112160.0,0.04022]
[1758683400656,1.23139603,112170.0,112160.0,0.04322]
[1758683401654,1.23139603,112170.0,112160.0,0.02103]
[1758683401959,1.59219603,112170.0,112160.0,0.0084]
[1758683402158,1.59219603,112170.0,112160.0,0.008]
[1758683402354,1.59219603,112170.0,112160.0,0.0084]
[1758683404855,1.34060057,112170.0,112160.0,0.0084]
[1758683405359,1.59219603,112170.0,112160.0,0.02103]
[1758683405562,1.34060057,112170.0,112160.0,0.1323425]
[1758683405757,1.59219603,112170.0,112160.0,0.1323425]
[1758683406962,1.23139603,112170.0,112160.0,0.1323425]
[1758683407755,0.97980057,112170.0,112160.0,0.1323425]
[1758683408061,1.23139603,112170.0,112160.0,0.1323425]
[1758683412464,0.97980057,112170.0,112160.0,0.1323425]
[1758683412660,0.41059603,112170.0,112160.0,0.1323425]
[1758683412861,1.23035603,112170.0,112160.0,0.1323425]
[1758683416064,0.41059603,112170.0,112160.0,0.1323425]
[1758683416265,1.23007603,112170.0,112160.0,0.1323425]
[1758683417563,1.23003603,112170.0,112160.0,0.1323425]
[1758683421869,1.22963603,112170.0,112160.0,0.1323425]
[1758683422968,0.41059603,112170.0,112160.0,0.1323425]
[1758683423160,1.22943603,112170.0,112160.0,0.1323425]
[1758683424458,1.22927603,112170.0,112160.0,0.1323425]
[1758683428371,1.22927603,112170.0,112160.0,0.0084]
[1758683431172,1.22927603,112170.0,112160.0,0.0975224]
[1758683431578,1.22927603,112170.0,112160.0,0.1333324]
[1758683432482,0.97768057,112170.0,112160.0,0.1333324]
[1758683432669,1.22927603,112170.0,112160.0,0.1333324]
[1758683433574,0.41059603,112170.0,112160.0,0.2450308]
[1758683433774,1.22843603,112170.0,112160.0,0.2450308]
[1758683434776,1.22855603,112170.0,112160.0,0.2450308]
[1758683435572,1.22847603,112170.0,112160.0,0.2450308]
[1758683435776,0.41059603,112170.0,112160.0,0.2450308]
[1758683436077,1.22839603,112170.0,112160.0,0.2450308]
[1758683436279,1.22839603,112170.0,112160.0,0.1333324]
[1758683436674,0.97680057,112170.0,112160.0,0.1333324]
[1758683436875,1.22839603,112170.0,112160.0,0.1333324]
[1758683437479,1.22839603,112170.0,112160.0,0.2450308]
[1758683438679,0.41059603,112170.0,112160.0,0.2450308]
[1758683438977,1.22839603,112170.0,112160.0,0.2450308]
[1758683439178,1.22839603,112170.0,112160.0,0.1333324]
[1758683441468,1.22839603,112170.0,112160.0,0.2450308]
[1758683441671,0.34148153,112170.0,112160.0,0.2450308]
[1758683441878,0.88863,112170.0,112160.0,0.8941324]
[1758683442077,0.07187,112170.0,112160.0,0.8941324]
[1758683442375,0.88895,112170.0,112160.0,0.8941324]
[1758683442971,0.88907,112170.0,112160.0,0.8941324]
[1758683443779,0.88899,112170.0,112160.0,0.8941324]
[1758683444677,0.90541201,112170.0,112160.0,0.8941324]
[1758683444878,0.90537201,112170.0,112160.0,0.8941324]
[1758683445482,0.88895,112170.0,112160.0,0.8941324]
[1758683446379,0.07187,112170.0,112160.0,0.8941324]
[1758683446582,1.17209881,112170.0,112160.0,1.17740121]
[1758683448286,1.17209881,112170.0,112160.0,1.33767334]
[1758683448984,1.17209881,112170.0,112160.0,1.05440453]
[1758683449181,1.26121361,112170.0,112160.0,0.8941324]
[1758683453698,1.17209881,112170.0,112160.0,0.8941324]
[1758683456289,1.26121401,112170.0,112160.0,0.8941324]
[1758683459593,1.54448282,112170.0,112160.0,0.8941324]
[1758683459793,0.9779452,112170.0,112160.0,0.8941324]
[1758683460097,1.54448282,112170.0,112160.0,0.8941324]
[1758683460590,1.54448282,112170.0,112160.0,0.1099732]
[1758683460797,1.54448282,112170.0,112160.0,0.1103732]
[1758683461904,1.54448282,112170.0,112160.0,0.1314632]
[1758683463101,1.54448282,112170.0,112160.0,0.02125]
[1758683463303,1.94448282,112170.0,112160.0,0.02125]
[1758683463497,1.94448282,112170.0,112160.0,0.0084]
[1758683465403,1.3779452,112170.0,112160.0,0.1317732]
[1758683465587,1.66121401,112170.0,112160.0,0.1317732]
[1758683465793,1.66121401,112170.0,112160.0,0.2440145]
[1758683466497,1.66121401,112170.0,112160.0,0.1317732]
[1758683467694,1.25961401,112170.0,112160.0,0.1317732]
[1758683467900,0.9763452,112170.0,112160.0,0.41504201]
[1758683468105,1.25921401,112170.0,112160.0,0.1317732]
[1758683468297,1.25961401,112170.0,112160.0,0.1317732]
[1758683472001,1.54288282,112170.0,112160.0,0.1317732]
[1758683477907,0.9763452,112170.0,112160.0,0.1317732]
[1758683478109,1.54288282,112170.0,112160.0,0.1317732]
[1758683478607,1.25961401,112170.0,112160.0,0.1317732]
[1758683487218,1.54288282,112170.0,112160.0,0.1317732]
[1758683490922,1.25961401,112170.0,112160.0,0.1317732]
[1758683498730,0.9763452,112170.0,112160.0,0.1317732]
[1758683499030,1.25961401,112170.0,112160.0,0.1317732]
[1758683503326,0.44425401,112170.0,112160.0,0.1317732]
[1758683503526,1.25889401,112170.0,112160.0,0.1317732]
[1758683504931,0.44425401,112170.0,112160.0,0.1317732]
[1758683505136,1.25889401,112170.0,112160.0,0.1317732]
[1758683505539,0.44425401,112170.0,112160.0,0.1317732]
[1758683505733,1.25889401,112170.0,112160.0,0.1317732]
[1758683506536,1.22747591,112170.0,112160.0,0.1317732]
[1758683512737,1.22747591,112170.0,112160.0,0.74442391]
[1758683512738,0.07187,112170.0,112160.0,0.74442391]
[1758683513054,0.57996,112170.0,112160.0,1.23357828]
[1758683513342,0.57996,112170.0,112160.0,1.39385041]
[1758683514142,0.57996,112170.0,112160.0,1.23357828]
[1758683515041,0.57996,112170.0,112160.0,1.39385041]
[1758683516745,0.57996,112170.0,112160.0,1.23357828]
[1758683523149,0.0004,112170.0,112160.0,1.23357828]
[1758683523349,0.566,112170.0,112160.0,1.23357828]
[1758683526546,0.566,112170.0,112160.0,0.98172757]
[1758683526742,0.566,112170.0,112160.0,1.23357828]
[1758683527149,0.08721573,112180.0,112170.0,0.1250352]
[1758683527348,0.81436,112180.0,112170.0,0.64598149]
[1758683528355,0.81436,112180.0,112170.0,0.64798149]
[1758683528554,0.81936,112180.0,112170.0,0.64798149]
[1758683529153,0.83431131,112180.0,112170.0,0.64798149]
[1758683529354,0.01995131,112180.0,112170.0,0.64798149]
[1758683529561,0.83431131,112180.0,112170.0,0.64798149]
[1758683532155,0.90496229,112180.0,112170.0,0.64798149]
[1758683533550,0.09060229,112180.0,112170.0,0.8998322]
[1758683533757,0.90184229,112180.0,112170.0,0.73968591]
[1758683534158,0.90184229,112180.0,112170.0,0.85179867]
[1758683534359,0.90224229,112180.0,112170.0,0.85179867]
[1758683534860,0.90224229,112180.0,112170.0,0.73968591]
[1758683536962,0.09100229,112180.0,112170.0,0.73968591]
[1758683537161,0.90524229,112180.0,112170.0,0.73968591]
[1758683537759,0.90524229,112180.0,112170.0,0.8998322]
[1758683537960,0.83459131,112180.0,112170.0,0.8998322]
[1758683538259,0.02035131,112180.0,112170.0,0.8998322]
[1758683538461,0.83455131,112180.0,112170.0,0.8998322]
[1758683538962,0.02035131,112180.0,112170.0,1.0119746]
[1758683539162,0.83455131,112180.0,112170.0,0.85182831]
[1758683539662,0.83415131,112180.0,112170.0,0.85182831]
[1758683539861,0.83455131,112180.0,112170.0,0.85182831]
[1758683540259,0.81956,112180.0,112170.0,0.94097473]
[1758683540661,0.81916,112180.0,112170.0,0.82883233]
[1758683540862,0.81956,112180.0,112170.0,0.98897862]
[1758683543358,0.81956,112180.0,112170.0,0.82883233]
[1758683543558,0.0054,112180.0,112170.0,0.98914623]
[1758683543964,0.0054,112180.0,112170.0,1.19719684]
[1758683544165,0.0054,112180.0,112170.0,1.03688294]
[1758683546469,0.0054,112180.0,112170.0,1.10812481]
[1758683550870,0.0054,112180.0,112170.0,1.46892481]
[1758683562878,0.0054,112180.0,112170.0,1.62925139]
[1758683563191,0.0054,112180.0,112170.0,1.42120078]
[1758683568593,0.0054,112180.0,112170.0,1.45254573]
[1758683572900,0.0054,112180.0,112170.0,1.38130386]
[1758683573298,0.0054,112180.0,112170.0,1.22097728]
[1758683574000,0.0054,112180.0,112170.0,1.42902789]
[1758683578798,0.0054,112180.0,112170.0,1.22097728]
[1758683581303,0.0054,112180.0,112170.0,1.50417294]
[1758683581496,0.0054,112180.0,112170.0,1.71273972]
[1758683582302,0.0054,112180.0,112170.0,1.42954406]
[1758683583803,0.0054,112180.0,112170.0,1.50417294]
[1758683584698,0.0054,112180.0,112170.0,1.67670371]
[1758683588605,0.0054,112180.0,112170.0,1.88527049]
[1758683589906,0.0054,112180.0,112170.0,1.8144492]
[1758683596910,0.00182467,112180.0,112170.0,1.8144492]
[1758683597108,0.00182467,112180.0,112170.0,1.60588242]
[1758683601518,0.00182467,112180.0,112170.0,1.81435338]
[1758683601714,0.0001,112190.0,112180.0,0.1239873]
[1758683602015,0.0001,112190.0,112180.0,0.86189191]
[1758683602209,0.01537498,112200.0,112190.0,0.1029393]
[1758683602509,0.01457498,112200.0,112190.0,0.76797496]
[1758683602718,0.88942962,112210.0,112200.0,0.1239714]
[1758683602915,0.07107396,112210.0,112200.0,0.88019591]
[1758683603215,0.28319566,112210.0,112200.0,0.76796706]
[1758683603913,0.28359566,112210.0,112200.0,0.76796706]
[1758683604113,0.28359566,112210.0,112200.0,0.92832818]
[1758683604506,0.68559566,112210.0,112200.0,0.92832818]
[1758683605115,0.4024,112210.0,112200.0,0.92832818]
[1758683605313,0.4194,112210.0,112200.0,0.92832818]
[1758683605710,0.019,112210.0,112200.0,0.92832818]
[1758683605906,0.0194,112210.0,112200.0,0.92832818]
[1758683609620,0.0194,112210.0,112200.0,0.76796706]
[1758683611418,0.83228,112210.0,112200.0,0.76796706]
[1758683611621,0.83188,112210.0,112200.0,0.58435773]
[1758683611820,1.11547566,112210.0,112200.0,0.86755339]
[1758683612017,0.83228,112210.0,112200.0,0.86755339]
[1758683612520,0.83188,112210.0,112200.0,0.86755339]
[1758683612718,0.83228,112210.0,112200.0,0.86755339]
[1758683613318,0.30259566,112210.0,112200.0,0.86755339]
[1758683613513,0.30259566,112210.0,112200.0,0.76796706]
[1758683613928,0.0194,112210.0,112200.0,0.76796706]
[1758683614126,0.30259566,112210.0,112200.0,0.76796706]
[1758683614722,0.30159566,112210.0,112200.0,0.76796706]
[1758683615721,0.31359566,112210.0,112200.0,0.76796706]
[1758683615921,0.0304,112210.0,112200.0,0.76796706]
[1758683624329,0.84312,112210.0,112200.0,0.92800807]
[1758683624526,1.12631566,112210.0,112200.0,1.04004147]
[1758683625028,1.12631566,112210.0,112200.0,0.88000046]
[1758683626031,0.84312,112210.0,112200.0,0.88000046]
[1758683626231,1.12631566,112210.0,112200.0,0.88000046]
[1758683627332,1.12631566,112210.0,112200.0,1.24080046]
[1758683628828,1.12631566,112210.0,112200.0,0.51920046]
[1758683629133,1.12631566,112210.0,112200.0,1.24080046]
[1758683630534,0.84312,112210.0,112200.0,1.2092359]
[1758683633741,0.84312,112210.0,112200.0,1.0972025]
[1758683634646,0.84312,112210.0,112200.0,1.25724351]
[1758683636245,0.84312,112210.0,112200.0,1.0972025]
[1758683639347,0.84312,112210.0,112200.0,0.3756025]
[1758683639554,0.84312,112210.0,112200.0,1.0972025]
[1758683643054,0.9322035,112210.0,112200.0,0.8455714]
[1758683643351,0.84312,112210.0,112200.0,0.95782842]
[1758683647457,0.84312,112210.0,112200.0,0.59702842]
[1758683648260,0.9322035,112210.0,112200.0,0.59702842]
[1758683648759,0.9322035,112210.0,112200.0,0.4847714]
[1758683649157,0.84312,112210.0,112200.0,0.4847714]
[1758683649562,0.84312,112210.0,112200.0,0.7364025]
[1758683651163,0.84284,112210.0,112200.0,0.74911495]
[1758683651464,0.84284,112210.0,112200.0,0.86137197]
[1758683653061,0.84284,112210.0,112200.0,0.74911495]
[1758683654264,0.0304,112210.0,112200.0,0.74911495]
[1758683654459,0.8428,112210.0,112200.0,0.74911495]
[1758683654656,0.8428,112210.0,112200.0,0.84794171]
[1758683656062,0.8418,112210.0,112200.0,0.84894171]
[1758683656262,0.8198,112210.0,112200.0,0.84894171]
[1758683658366,0.8198,112210.0,112200.0,0.59731061]
[1758683658566,0.8198,112210.0,112200.0,0.84894171]
[1758683659471,0.81976,112210.0,112200.0,0.96119873]
[1758683659867,0.81976,112210.0,112200.0,0.84894171]
[1758683660669,0.81976,112210.0,112200.0,1.05741267]
[1758683664468,0.81976,112210.0,112200.0,1.21770827]
[1758683665272,0.81976,112210.0,112200.0,1.00923731]
[1758683666675,0.81936,112210.0,112200.0,1.00923731]
[1758683666874,0.81976,112210.0,112200.0,1.00923731]
[1758683670278,0.81976,112210.0,112200.0,0.75760621]
[1758683670471,0.81976,112210.0,112200.0,1.09835989]
[1758683670676,0.81936,112210.0,112200.0,1.09835989]
[1758683670877,0.81936,112210.0,112200.0,0.93806429]
[1758683671176,0.0074,112210.0,112200.0,0.93806429]
[1758683677890,0.0074,112210.0,112200.0,0.68643319]
[1758683678097,0.0074,112210.0,112200.0,0.93806429]
[1758683679293,0.0074,112210.0,112200.0,1.0983113]
[1758683680090,0.0074,112210.0,112200.0,0.93806429]
[1758683683395,0.0074,112210.0,112200.0,0.68643319]
[1758683683693,0.0074,112210.0,112200.0,0.93806429]
[1758683684597,0.0074,112210.0,112200.0,0.92535184]
[1758683689506,0.0074,112210.0,112200.0,1.1338228]
[1758683689910,0.0074,112210.0,112200.0,1.03499604]
[1758683690109,0.0074,112210.0,112200.0,0.78336494]
[1758683692301,0.0074,112210.0,112200.0,1.03499604]
[1758683692610,0.0074,112210.0,112200.0,1.06643465]
[1758683693215,0.0074,112210.0,112200.0,0.85796369]
[1758683694312,0.0074,112210.0,112200.0,1.06643465]
[1758683697313,0.0074,112210.0,112200.0,0.70563465]
[1758683697514,0.0074,112210.0,112200.0,1.42723465]
[1758683698912,0.0074,112210.0,112200.0,1.14416494]
[1758683699112,0.0074,112210.0,112200.0,1.42723465]
[1758683700309,0.0074,112210.0,112200.0,1.71030436]
[1758683700510,0.0074,112210.0,112200.0,1.80604881]
[1758683701503,0.00248754,112210.0,112200.0,1.99757785]
[1758683701708,0.00208754,112210.0,112200.0,1.99757785]
[1758683701907,0.00248754,112210.0,112200.0,1.99757785]
[1758683702112,0.00208754,112210.0,112200.0,1.99757785]
[1758683702313,0.00248754,112210.0,112200.0,1.99757785]
[1758683703311,0.0001,112220.0,112210.0,0.1248435]
[1758683703616,0.09058,112230.0,112220.0,0.1248355]
[1758683703913,0.09048,112230.0,112220.0,0.76870521]
[1758683704915,0.09048,112230.0,112220.0,0.4856355]
[1758683705214,0.09048,112230.0,112220.0,0.76870521]
[1758683705415,0.09248,112230.0,112220.0,0.76870521]
[1758683705611,0.10248,112230.0,112220.0,0.76870521]